fUSD/lending_fUSD_20260122
["ID","MTS","AMOUNT","RATE_DAILY","PERIOD"]
[403065093,1769118632506,-151.0,0.00016962,2]
[403065094,1769118632515,-500.0,0.00016962,2]
[403065095,1769118632524,-500.0,0.00016962,2]
[403065096,1769118632534,-151.0,0.00016962,2]
[403065097,1769118632543,-500.0,0.00016962,2]
[403065098,1769118632553,-138.11226769,0.00016962,2]
[403065099,1769118632564,-361.88773231,0.00016962,2]
[403065100,1769118632573,-151.0,0.00016962,2]
[403065101,1769118632582,-52.5309507,0.00016962,2]
[403065102,1769118632604,-98.4690493,0.00016962,2]
[403065103,1769118632613,-500.0,0.00016962,2]
[403065104,1769118632622,-500.0,0.00016962,2]
[403065105,1769118632631,-151.0,0.00016962,2]
[403065106,1769118632640,-151.0,0.00016962,2]
[403065107,1769118632649,-222.64774726,0.00016962,2]
[403065116,1769118632738,-277.35225274,0.00016962,2]
[403065118,1769118632748,-354.38312619,0.00016962,2]
[403065120,1769118632759,-145.61687381,0.00016962,2]
[403065123,1769118632768,-500.0,0.00016962,2]
[403065125,1769118632778,-151.0,0.00016962,2]
[403065127,1769118632787,-500.0,0.00016962,2]
[403065129,1769118632797,-151.0,0.00016962,2]
[403065131,1769118632806,-500.0,0.00016962,2]
[403065133,1769118632815,-151.0,0.00016962,2]
[403065135,1769118632824,-500.0,0.00016962,2]
[403065137,1769118632833,-500.0,0.00016962,2]
[403065139,1769118632842,-500.0,0.00016962,2]
[403065141,1769118632851,-151.0,0.00016962,2]
[403065143,1769118632860,-500.0,0.00016962,2]
[403065145,1769118632870,-151.0,0.00016962,2]
[403065147,1769118632879,-278.00631978,0.00016962,2]
[403065149,1769118632889,-500.0,0.00016962,2]
[403065151,1769118632898,-500.0,0.00016962,2]
[403065153,1769118632908,-151.0,0.00016962,2]
[403065155,1769118632917,-500.0,0.00016962,2]
[403065157,1769118632926,-250.0,0.00016962,2]
[403065159,1769118632935,-151.0,0.00016962,2]
[403065161,1769118632944,-151.0,0.00016962,2]
[403065163,1769118632953,-500.0,0.00016962,2]
[403065165,1769118632963,-250.0,0.00016962,2]
[403065167,1769118632973,-151.0,0.00016962,2]
[403065169,1769118632982,-151.0,0.00016962,2]
[403065171,1769118632991,-250.0,0.00016962,2]
[403065173,1769118633000,-151.0,0.00016962,2]
[403065175,1769118633009,-151.0,0.00016962,2]
[403065177,1769118633018,-500.0,0.00016962,2]
[403065180,1769118633027,-98.40498736,0.00016962,2]
[403065182,1769118633039,-151.59501264,0.00016962,2]
[403065184,1769118633048,-151.0,0.00016962,2]
[403065186,1769118633057,-151.0,0.00016962,2]
[403065188,1769118633067,-500.0,0.00016962,2]
[403065190,1769118633076,-250.0,0.00016962,2]
[403065192,1769118633085,-151.0,0.00016962,2]
[403065194,1769118633094,-500.0,0.00016962,2]
[403065196,1769118633102,-250.0,0.00016962,2]
[403065198,1769118633111,-151.0,0.00016962,2]
[403065200,1769118633120,-212.1033362,0.00016962,2]
[403065202,1769118633129,-250.0,0.00016962,2]
[403065204,1769118633137,-151.0,0.00016962,2]
[403065206,1769118633147,-293.01774456,0.00016962,2]
[403065208,1769118633156,-250.0,0.00016962,2]
[403065210,1769118633165,-250.0,0.00016962,2]
[403065212,1769118633174,-232.4016211,0.00016962,2]
[403065214,1769118633185,-53.19334198,0.00016962,2]
[403065216,1769118633194,-500.0,0.00016962,2]
[403065218,1769118633203,-250.0,0.00016962,2]
[403065220,1769118633212,-250.0,0.00016962,2]
[403065223,1769118633222,-250.0,0.00016962,2]
[403065225,1769118633231,-250.0,0.00016962,2]
[403065227,1769118633239,-250.0,0.00016962,2]
[403065229,1769118633248,-289.88191886,0.00016962,2]
[403065230,1769118633257,-500.0,0.00016962,2]
[403065232,1769118633266,-500.0,0.00016962,2]
[403065234,1769118633275,-500.0,0.00016962,2]
[403065236,1769118633284,-500.0,0.00016962,2]
[403065237,1769118633293,-500.0,0.00016962,2]
[403065239,1769118633302,-500.0,0.00016962,2]
[403065241,1769118633311,-500.0,0.00016962,2]
[403065242,1769118633320,-500.0,0.00016962,2]
[403065243,1769118633329,-500.0,0.00016962,2]
[403065245,1769118633338,-500.0,0.00016962,2]
[403065247,1769118633347,-500.0,0.00016962,2]
[403065248,1769118633356,-500.0,0.00016962,2]
[403065249,1769118633365,-500.0,0.00016962,2]
[403065250,1769118633375,-500.0,0.00016962,2]
[403065251,1769118633386,-500.0,0.00016962,2]
[403065252,1769118633395,-500.0,0.00016962,2]
[403065253,1769118633404,-500.0,0.00016962,2]
[403065254,1769118633413,-500.0,0.00016962,2]
[403065255,1769118633423,-500.0,0.00016962,2]
[403065256,1769118633432,-500.0,0.00016962,2]
[403065257,1769118633441,-500.0,0.00016962,2]
[403065258,1769118633452,-500.0,0.00016962,2]
[403065259,1769118633461,-673.59,0.00017236,2]
[403065260,1769118633471,-500.0,0.00017396,2]
[403065261,1769118633480,-673.59,0.0001751,2]
[403065262,1769118633489,-748.11534687,0.0001751,2]
[403065263,1769118633498,-200.0,0.0001751,2]
[403065264,1769118633506,-500.0,0.0001751,2]
[403065265,1769118633515,-330.91,0.000176,2]
[403065266,1769118633525,-59190.6831,0.00017615,2]
[403065267,1769118633534,-7506.18986863,0.00017616,2]
[403065268,1769118633543,-176.74378963,0.00017616,2]
[403065269,1769118633552,-7506.18986862,0.00017648,2]
[403065270,1769118633561,-514.13913965,0.00017673,2]
[403065271,1769118633570,-500.0,0.00017673,2]
[403065272,1769118633579,-546.39725778,0.00017673,2]
[403065273,1769118633588,-500.0,0.00017673,2]
[403065274,1769118633597,-500.0,0.00017673,2]
[403065275,1769118633606,-500.0,0.00017673,2]
[403065276,1769118633615,-299.0,0.00017679,2]
[403065277,1769118633625,-7506.18986862,0.00017679,2]
[403065278,1769118633636,-728.2071432,0.0001769,2]
[403065279,1769118633645,-1921.75017227,0.0001769,2]
[403065280,1769118633654,-3390.1950962,0.0001769,2]
[403065281,1769118633664,-5071.52910967,0.0001769,2]
[403065282,1769118633673,-6861.9573,0.0001769,2]
[403065283,1769118633682,-500.0,0.00017699,2]
[403065284,1769118633692,-500.0,0.00017699,2]
[403065285,1769118633701,-500.0,0.00017699,2]
[403065286,1769118633709,-500.0,0.00017699,2]
[403065287,1769118633719,-150.0,0.00017699,2]
[403065288,1769118633728,-500.0,0.00017699,2]
[403065289,1769118633738,-150.0,0.00017699,2]
[403065290,1769118633747,-500.0,0.00017699,2]
[403065291,1769118633756,-500.0,0.00017699,2]
[403065292,1769118633766,-150.0,0.00017699,2]
[403065293,1769118633775,-150.0,0.00017699,2]
[403065294,1769118633784,-150.95709177,0.00017699,2]
[403065295,1769118633795,-150.0,0.00017699,2]
[403065296,1769118633804,-221.17629805,0.00017699,2]
[403065297,1769118633814,-150.0,0.00017699,2]
[403065298,1769118633824,-150.0,0.00017699,2]
[403065299,1769118633835,-150.0,0.00017699,2]
[403065300,1769118633844,-500.0,0.00017699,2]
[403065301,1769118633853,-500.0,0.00017699,2]
[403065302,1769118633863,-7506.18986862,0.00017711,2]
[403065303,1769118633872,-114455.38430934,0.00017716,2]
[403065304,1769118633900,-304.29322571,0.00017716,2]
[403065305,1769118633911,-10452.53889691,0.00017716,2]
[403065306,1769118633930,-351.765,0.00017716,2]
[403065307,1769118633941,-299.86,0.00017716,2]
[403065310,1769118638465,-722694.05184135,0.00017716,2]
[403065311,1769118638477,-3344.2379409,0.00017716,2]
[403065312,1769118638488,-7506.18986862,0.00017742,2]
[403065313,1769118638499,-368.0,0.00017753,2]
[403065314,1769118638510,-500.0,0.00017754,2]
[403065315,1769118638521,-500.0,0.00017754,2]
[403065316,1769118638532,-500.0,0.00017754,2]
[403065317,1769118638543,-500.0,0.00017754,2]
[403065318,1769118638554,-150.0,0.00017754,2]
[403065319,1769118638565,-150.0,0.00017754,2]
[403065320,1769118638575,-500.0,0.00017754,2]
[403065321,1769118638586,-150.0,0.00017754,2]
[403065322,1769118638597,-150.0,0.00017754,2]
[403065323,1769118638607,-500.0,0.00017754,2]
[403065324,1769118638618,-500.0,0.00017754,2]
[403065325,1769118638629,-159.492661,0.00017754,2]
[403065326,1769118638640,-500.0,0.00017754,2]
[403065327,1769118638651,-500.0,0.00017754,2]
[403065328,1769118638662,-500.0,0.00017754,2]
[403065329,1769118638673,-500.0,0.00017754,2]
[403065330,1769118638684,-500.0,0.00017754,2]
[403065331,1769118638695,-150.0,0.00017754,2]
[403065332,1769118638706,-511.25613076,0.00017754,2]
[403065333,1769118638718,-500.0,0.00017754,2]
[403065334,1769118638730,-150.0,0.00017754,2]
[403065335,1769118638742,-150.0,0.00017754,2]
[403065336,1769118638754,-150.0,0.00017754,2]
[403065337,1769118638764,-293.0,0.00017754,2]
[403065338,1769118638774,-500.0,0.00017754,2]
[403065339,1769118638783,-500.0,0.00017754,2]
[403065340,1769118638793,-7506.18986862,0.00017774,2]
[403065341,1769118638802,-4032.25310445,0.00017777,2]
[403065342,1769118638811,-673.59,0.00017784,2]
[403065343,1769118638821,-7506.18986862,0.00017805,2]
[403065344,1769118638830,-150.0,0.00017808,2]
[403065345,1769118638839,-150.0,0.00017808,2]
[403065346,1769118638848,-4032.25310445,0.00017808,2]
[403065347,1769118638858,-500.0,0.00017809,2]
[403065348,1769118638867,-500.0,0.00017809,2]
[403065349,1769118638876,-500.0,0.00017809,2]
[403065351,1769118638886,-450.0,0.00017809,2]
[403065353,1769118638895,-150.0,0.00017809,2]
[403065354,1769118638904,-150.0,0.00017809,2]
[403065356,1769118638913,-500.0,0.00017809,2]
[403065359,1769118638923,-150.0,0.00017809,2]
[403065361,1769118638933,-150.0,0.00017809,2]
[403065363,1769118638942,-500.0,0.00017809,2]
[403065365,1769118638952,-500.0,0.00017809,2]
[403065366,1769118638962,-500.0,0.00017809,2]
[403065369,1769118638972,-184.08570023,0.00017809,2]
[403065371,1769118638982,-500.0,0.00017809,2]
[403065373,1769118638991,-500.0,0.00017809,2]
[403065375,1769118639001,-500.0,0.00017809,2]
[403065377,1769118639011,-150.0,0.00017809,2]
[403065379,1769118639020,-500.0,0.00017809,2]
[403065381,1769118639029,-150.0,0.00017809,2]
[403065383,1769118639038,-150.0,0.00017809,2]
[403065385,1769118639047,-150.0,0.00017809,2]
[403065386,1769118639056,-500.0,0.00017809,2]
[403065389,1769118639065,-500.0,0.00017809,2]
[403065391,1769118639074,-7506.18986862,0.00017837,2]
[403065393,1769118639084,-4032.25310445,0.00017839,2]
[403065395,1769118639093,-853.0,0.00017841,2]
[403065397,1769118639102,-150.0,0.00017863,2]
[403065420,1769118639573,-150.0,0.00017863,2]
[403065421,1769118639605,-268.16233582,0.00017863,2]
[403065422,1769118639625,-500.0,0.00017863,2]
[403065423,1769118639642,-500.0,0.00017863,2]
[403065424,1769118639651,-150.0,0.00017863,2]
[403065425,1769118639662,-205.46005612,0.00017863,2]
[403065426,1769118639671,-500.0,0.00017863,2]
[403065427,1769118639680,-252.04314772,0.00017863,2]
[403065428,1769118639689,-150.0,0.00017863,2]
[403065429,1769118639700,-500.0,0.00017863,2]
[403065430,1769118639711,-500.0,0.00017863,2]
[403065431,1769118639720,-500.0,0.00017863,2]
[403065432,1769118639729,-500.0,0.00017863,2]
[403065433,1769118639738,-500.0,0.00017863,2]
[403065434,1769118639747,-500.0,0.00017863,2]
[403065435,1769118639756,-150.0,0.00017863,2]
[403065436,1769118639766,-500.0,0.00017863,2]
[403065437,1769118639775,-250.0,0.00017863,2]
[403065438,1769118639784,-250.0,0.00017863,2]
[403065439,1769118639793,-252.13388248,0.00017863,2]
[403065440,1769118639802,-500.0,0.00017863,2]
[403065441,1769118639812,-504.31209955,0.00017863,2]
[403065442,1769118639821,-7506.18986862,0.00017868,2]
[403065443,1769118639831,-4032.25310445,0.00017869,2]
[403065444,1769118639840,-500.0,0.00017899,2]
[403065445,1769118639850,-502.69034994,0.00017899,2]
[403065446,1769118639861,-686.0405357,0.000179,2]
[403065447,1769118639870,-1000.0,0.000179,2]
[403065448,1769118639880,-25000.0,0.000179,3]
[403065449,1769118639890,-4032.25310445,0.000179,2]
[403065450,1769118639900,-4686.76452028,0.000179,2]
[403065451,1769118639909,-15495.85446133,0.000179,2]
[403065452,1769118639918,-6848.16141373,0.000179,2]
[403065453,1769118639927,-2497.40920944,0.000179,2]
[403065454,1769118639936,-7506.18986862,0.000179,2]
[403065455,1769118639945,-150.0,0.00017918,2]
[403065456,1769118639954,-150.0,0.00017918,2]
[403065457,1769118639963,-500.0,0.00017918,2]
[403065458,1769118639972,-500.0,0.00017918,2]
[403065459,1769118639981,-150.0,0.00017918,2]
[403065460,1769118639990,-331.5474637,0.00017918,2]
[403065461,1769118639999,-150.0,0.00017918,2]
[403065462,1769118640008,-500.0,0.00017918,2]
[403065463,1769118640017,-500.0,0.00017918,2]
[403065464,1769118640026,-500.0,0.00017918,2]
[403065465,1769118640035,-500.0,0.00017918,2]
[403065466,1769118640044,-500.0,0.00017918,2]
[403065467,1769118640053,-500.0,0.00017918,2]
[403065468,1769118640063,-269.57764557,0.00017918,2]
[403065469,1769118640072,-500.0,0.00017918,2]
[403065470,1769118640080,-500.0,0.00017918,2]
[403065471,1769118640089,-856.61,0.00017938,2]
[403065472,1769118640098,-924.22,0.00017972,2]
[403065473,1769118640107,-500.0,0.00017972,2]
[403065474,1769118640116,-500.0,0.00017972,2]
[403065475,1769118640125,-150.0,0.00017972,2]
[403065476,1769118640134,-150.0,0.00017972,2]
[403065477,1769118640143,-30935.0,0.00017973,2]
[403065478,1769118640152,-450.0,0.00017973,2]
[403065479,1769118640162,-250.0,0.00017973,2]
[403065480,1769118640171,-250.0,0.00017973,2]
[403065481,1769118640180,-500.0,0.00017973,2]
[403065482,1769118640190,-202.6359176,0.00017973,2]
[403065483,1769118640200,-500.0,0.00017973,2]
[403065484,1769118640211,-500.0,0.00017973,2]
[403065485,1769118640220,-500.0,0.00017973,2]
[403065486,1769118640229,-311.52352362,0.00017973,2]
[403065487,1769118640238,-150.0,0.00017973,2]
[403065488,1769118640248,-150.0,0.00017973,2]
[403065489,1769118640257,-150.0,0.00017973,2]
[403065490,1769118640266,-1109.1655846,0.00017999,2]
[403065491,1769118640275,-924.22,0.00017999,2]
[403065492,1769118640284,-924.22,0.00017999,2]
[403065493,1769118640293,-924.22,0.00017999,2]
[403065494,1769118640302,-924.22,0.00017999,2]
[403065496,1769118640311,-924.22,0.00017999,2]
[403065497,1769118640320,-924.22,0.00017999,2]
[403065498,1769118640330,-924.22,0.00017999,2]
[403065499,1769118640341,-924.22,0.00017999,2]
[403065500,1769118640353,-924.22,0.00017999,2]
[403065501,1769118640362,-924.22,0.00017999,2]
[403065502,1769118640371,-924.22,0.00017999,2]
[403065503,1769118640382,-924.22,0.00017999,2]
[403065504,1769118640395,-924.22,0.00017999,2]
[403065505,1769118640404,-924.22,0.00017999,2]
[403065506,1769118640413,-924.22,0.00017999,2]
[403065507,1769118640423,-924.22,0.00017999,2]
[403065508,1769118640435,-924.22,0.00017999,2]
[403065509,1769118640445,-924.22,0.00017999,2]
[403065510,1769118640454,-924.22,0.00017999,2]
[403065511,1769118640464,-924.22,0.00017999,2]
[403065512,1769118640472,-924.22,0.00017999,2]
[403065513,1769118640481,-311.31240548,0.00017999,2]
[403065514,1769118640490,-500.0,0.00017999,2]
[403065515,1769118640499,-17894.7065693,0.00017999,2]
[403065516,1769118640509,-300.0,0.00017999,2]
[403065517,1769118640518,-563.85537186,0.00017999,2]
[403065518,1769118640528,-422.31324799,0.00017999,2]
[403065519,1769118640538,-3180832.95907695,0.00018,2]
[403065520,1769118640590,-592.47286909,0.00018,2]
[403065521,1769118640602,-2680.42,0.00018,2]
[403065527,1769118640886,-839.15,0.00018,2]
[403065528,1769118640898,-7986025.65702166,0.00018,2]
[403065529,1769118640910,-2147.92155226,0.00018,2]
[403065531,1769118640922,-27115.5364935,0.00018,2]
[403065532,1769118640944,-13441.71464927,0.00018,2]
[403065533,1769118640955,-8719.68070531,0.00018,2]
[403065534,1769118640967,-382388.0,0.00018,2]
[403065535,1769118640977,-282524.39598656,0.00018,2]
[403065536,1769118641012,-48725.7977555,0.00018,2]
[403065537,1769118641035,-7301.2,0.00018,2]
[403065538,1769118641046,-535904.78547319,0.00018,2]
[403065539,1769118641060,-2096.14107652,0.00018,2]
[403065570,1769118646839,-10621.31783042,0.00018,2]
[403065574,1769118646866,-1845.15984668,0.00018,2]
[403065576,1769118646877,-7339.15049497,0.00018,2]
[403065579,1769118646889,-5570.45453968,0.00018,2]
[403065582,1769118646912,-13345.376308,0.00018,2]
[403065649,1769118648474,-616.41039104,0.00018,2]
[403065686,1769118837956,3994.88,0.0001388,2]
[403065734,1769119753378,1000.0,0.00015534,2]
[403065735,1769119814485,-166.66,0.00015756,2]
[403065736,1769119814507,-250.0,0.00015756,2]
[403065737,1769119814529,-83.34,0.00015756,2]
[403065740,1769119831417,-198.66,0.00015756,2]
[403065741,1769119831426,-300.0,0.00015839,2]
[403065742,1769119831435,-365.42449454,0.00015839,2]
[403065743,1769119831446,-324.50807673,0.00015839,2]
[403065744,1769119831455,-195.0,0.00015839,2]
[403065745,1769119831465,-1200.0,0.0001592,2]
[403065746,1769119831475,-213.13999351,0.00015921,2]
[403065747,1769119831537,-2331.0605753,0.00015921,2]
[403065748,1769119831546,-300.0,0.00015921,2]
[403065749,1769119831555,-300.0,0.00015989,2]
[403065750,1769119831564,-300.0,0.00015989,2]
[403065751,1769119831573,-300.0,0.0001599,2]
[403065752,1769119831582,-195.0,0.0001599,2]
[403065753,1769119831592,-175.4,0.00016072,2]
[403065754,1769119831601,-166.66,0.00016087,2]
[403065755,1769119831611,-3210.0,0.00016089,2]
[403065756,1769119831621,-300.0,0.00016096,2]
[403065757,1769119831630,-1502.8794247,0.00016099,2]
[403065758,1769119831642,-10014.5705753,0.00016099,2]
[403065759,1769119831651,-457.16,0.000161,2]
[403065760,1769119831661,-695.99,0.00016107,2]
[403065762,1769119831670,-151.0,0.00016203,2]
[403065764,1769119831680,-166.66,0.00016419,2]
[403065767,1769119831695,-151.0,0.00016438,2]
[403065769,1769119831704,-405.51,0.00016506,2]
[403065771,1769119831714,-162.57,0.00016546,2]
[403065773,1769119831723,-1028.46429918,0.00016582,2]
[403065775,1769119831735,-599.63570082,0.00016582,2]
[403065777,1769119831744,-300.22948979,0.00016582,2]
[403065779,1769119831755,-522.04790989,0.00016582,2]
[403065781,1769119831768,-805.82260032,0.00016582,2]
[403065783,1769119831778,-1628.1,0.00016582,2]
[403065785,1769119831787,-1628.1,0.00016582,2]
[403065787,1769119831797,-1628.1,0.00016582,2]
[403065789,1769119831807,-7728.34978655,0.00016583,2]
[403065791,1769119831818,-492.41777302,0.00016583,2]
[403065794,1769119831829,-20573.79612785,0.00016583,2]
[403065796,1769119831838,-200.0,0.00016585,2]
[403065798,1769119831847,-1500.0,0.00016585,2]
[403065801,1769119831857,-550.0,0.00016591,2]
[403065803,1769119831866,-189241.56247081,0.00016592,2]
[403065805,1769119831877,-4171.55503674,0.00016592,2]
[403065807,1769119831888,-269.43699996,0.00016592,2]
[403065810,1769119831903,-641.28142672,0.00016592,2]
[403065812,1769119831914,-525.18816259,0.00016592,2]
[403065814,1769119831924,-2012.78354579,0.00016592,2]
[403065816,1769119831936,-1482.9015306,0.00016592,2]
[403065818,1769119831946,-1015.1628788,0.00016592,2]
[403065821,1769119831965,-50400.41694521,0.00016592,2]
[403065823,1769119831976,-41428.78290757,0.00016592,2]
[403066138,1769119837472,-151.0,0.00016259,2]
[403066139,1769119837481,-243.86843645,0.00016592,2]
[403066140,1769119837527,-708567.05965876,0.00016592,2]
[403066141,1769119837536,-500.0,0.00016683,2]
[403066142,1769119837545,-202.31671679,0.00016683,2]
[403066143,1769119837555,-200.0,0.00016683,2]
[403066144,1769119837564,-500.0,0.00016683,2]
[403066145,1769119837574,-500.0,0.00016683,2]
[403066146,1769119837584,-151.0,0.00016683,2]
[403066147,1769119837593,-250.0,0.00016683,2]
[403066148,1769119837602,-500.0,0.00016683,2]
[403066149,1769119837612,-500.0,0.00016683,2]
[403066150,1769119837621,-151.0,0.00016683,2]
[403066151,1769119837630,-500.0,0.00016683,2]
[403066152,1769119837640,-291.44933825,0.00016683,2]
[403066153,1769119837649,-500.0,0.00016683,2]
[403066154,1769119837658,-151.0,0.00016683,2]
[403066155,1769119837668,-500.0,0.00016683,2]
[403066156,1769119837677,-500.0,0.00016683,2]
[403066157,1769119837686,-151.0,0.00016683,2]
[403066158,1769119837699,-500.0,0.00016683,2]
[403066159,1769119837708,-500.0,0.00016683,2]
[403066160,1769119837718,-151.0,0.00016683,2]
[403066161,1769119837728,-500.0,0.00016683,2]
[403066162,1769119837738,-151.0,0.00016683,2]
[403066163,1769119837748,-500.0,0.00016683,2]
[403066164,1769119837757,-500.0,0.00016683,2]
[403066166,1769119837767,-500.0,0.00016683,2]
[403066167,1769119837776,-500.0,0.00016683,2]
[403066168,1769119837785,-500.0,0.00016683,2]
[403066169,1769119837795,-500.0,0.00016683,2]
[403066170,1769119837804,-500.0,0.00016683,2]
[403066171,1769119837813,-500.0,0.00016683,2]
[403066173,1769119837822,-500.0,0.00016683,2]
[403066175,1769119837831,-500.0,0.00016683,2]
[403066176,1769119837840,-500.0,0.00016683,2]
[403066178,1769119837849,-500.0,0.00016683,2]
[403066180,1769119837858,-500.0,0.00016683,2]
[403066182,1769119837867,-500.0,0.00016683,2]
[403066184,1769119837875,-500.0,0.00016683,2]
[403066186,1769119837884,-500.0,0.00016683,2]
[403066188,1769119837894,-500.0,0.00016683,2]
[403066189,1769119837903,-500.0,0.00016683,2]
[403066191,1769119837912,-500.0,0.00016683,2]
[403066192,1769119837921,-500.0,0.00016683,2]
[403066193,1769119837930,-500.0,0.00016683,2]
[403066194,1769119837939,-500.0,0.00016683,2]
[403066195,1769119837951,-500.0,0.00016683,2]
[403066196,1769119837960,-500.0,0.00016683,2]
[403066197,1769119837969,-500.0,0.00016683,2]
[403066198,1769119837979,-500.0,0.00016683,2]
[403066199,1769119837990,-500.0,0.00016683,2]
[403066200,1769119838000,-500.0,0.00016683,2]
[403066201,1769119838009,-500.0,0.00016683,2]
[403066202,1769119838018,-500.0,0.00016683,2]
[403066203,1769119838027,-500.0,0.00016683,2]
[403066204,1769119838037,-500.0,0.00016683,2]
[403066205,1769119838048,-500.0,0.00016683,2]
[403066206,1769119838057,-500.0,0.00016683,2]
[403066207,1769119838066,-500.0,0.00016683,2]
[403066208,1769119838076,-500.0,0.00016683,2]
[403066209,1769119838085,-500.0,0.00016683,2]
[403066210,1769119838094,-500.0,0.00016683,2]
[403066211,1769119838104,-500.0,0.00016683,2]
[403066212,1769119838113,-500.0,0.00016683,2]
[403066213,1769119838122,-500.0,0.00016683,2]
[403066214,1769119838131,-500.0,0.00016683,2]
[403066215,1769119838141,-500.0,0.00016683,2]
[403066216,1769119838151,-500.0,0.00016683,2]
[403066217,1769119838160,-500.0,0.00016683,2]
[403066218,1769119838169,-500.0,0.00016683,2]
[403066219,1769119838178,-500.0,0.00016683,2]
[403066220,1769119838187,-500.0,0.00016683,2]
[403066221,1769119838197,-151.0,0.00016683,2]
[403066222,1769119838205,-151.0,0.00016683,2]
[403066223,1769119838215,-151.0,0.00016683,2]
[403066224,1769119838223,-151.0,0.00016683,2]
[403066225,1769119838233,-151.0,0.00016683,2]
[403066226,1769119838242,-151.0,0.00016683,2]
[403066227,1769119838252,-151.0,0.00016683,2]
[403066228,1769119838261,-151.0,0.00016683,2]
[403066229,1769119838270,-151.0,0.00016683,2]
[403066230,1769119838279,-151.0,0.00016683,2]
[403066231,1769119838289,-151.0,0.00016683,2]
[403066232,1769119838298,-151.0,0.00016683,2]
[403066233,1769119838307,-151.0,0.00016683,2]
[403066234,1769119838316,-151.0,0.00016683,2]
[403066235,1769119838327,-151.0,0.00016683,2]
[403066236,1769119838336,-151.0,0.00016683,2]
[403066237,1769119838345,-151.0,0.00016683,2]
[403066238,1769119838354,-151.0,0.00016683,2]
[403066239,1769119838363,-151.0,0.00016683,2]
[403066240,1769119838372,-151.0,0.00016683,2]
[403066241,1769119838381,-151.0,0.00016683,2]
[403066242,1769119838391,-151.0,0.00016683,2]
[403066243,1769119838399,-200.0,0.00016683,2]
[403066244,1769119838408,-1109.1655846,0.00016692,2]
[403066245,1769119838418,-1074.88818825,0.00016692,2]
[403066246,1769119838427,-1000.0,0.00016692,2]
[403066247,1769119838436,-39511.06,0.00016693,2]
[403066248,1769119838445,-28794.56368739,0.00016729,2]
[403066249,1769119838455,-649.0,0.00016737,2]
[403066250,1769119838464,-166.66,0.00016751,2]
[403066251,1769119838473,-1581.0,0.00016771,2]
[403066252,1769119838482,-1910.0,0.00016804,2]
[403066253,1769119838492,-227.0,0.00016838,2]
[403066254,1769119838501,-244.0,0.00016871,2]
[403066255,1769119838510,-28794.56368739,0.00016876,2]
[403066256,1769119838519,-22722.05,0.00016894,2]
[403066257,1769119838527,-609.0,0.00016904,2]
[403066258,1769119838537,-695.99,0.00016913,2]
[403066259,1769119838546,-1624.0,0.00016938,2]
[403066260,1769119838555,-500.0,0.00016957,2]
[403066261,1769119838564,-1318.0,0.00016971,2]
[403066262,1769119838574,-167.08,0.00016992,2]
[403066263,1769119838583,-250.0,0.00017,2]
[403066264,1769119838592,-1679.0,0.00017005,2]
[403066265,1769119838602,-28794.56368739,0.00017022,2]
[403066266,1769119838611,-1036.0,0.00017038,2]
[403066267,1769119838620,-1424.0,0.00017071,2]